[Event "Titled Tuesday Blitz August 16 Late 2022"]
[White "Jorajuria Mendoza, Algol"]
[Black "Taichman, Ori"]
[WhiteFideId "5128897"]
[BlackFideId "2804069"]
[WhiteElo "1600"]
[BlackElo "2227"]
[Result "0-1"]
[Round "02"]
[TimeControl "180+1"]
[Date "2022.08.18"]
[WhiteClock "0:00:00"]
[BlackClock "0:00:00"]

1. e4 {[%clk 0:00:00]}  c5 {[%clk 0:00:00]} 2. Nc3 {[%clk 0:00:00]}  Nc6 {[%clk 0:00:00]} 3. Bb5 {[%clk 0:00:00]}  Nd4 {[%clk 0:00:00]} 4. Nf3 {[%clk 0:00:00]}  g6 {[%clk 0:00:00]} 5. Bc4 {[%clk 0:00:00]}  Bg7 {[%clk 0:00:00]} 6. Nxd4 {[%clk 0:00:00]}  cxd4 {[%clk 0:00:00]} 7. Qf3 {[%clk 0:00:00]}  Nh6 {[%clk 0:00:00]} 8. Ne2 {[%clk 0:00:00]}  O-O {[%clk 0:00:00]} 9. d3 {[%clk 0:00:00]}  Ng4 {[%clk 0:00:00]} 10. Qg3 {[%clk 0:00:00]}  Ne5 {[%clk 0:00:00]} 11. Bb3 {[%clk 0:00:00]}  Nc6 {[%clk 0:00:00]} 12. O-O {[%clk 0:00:00]}  Na5 {[%clk 0:00:00]} 13. Ba4 {[%clk 0:00:00]}  d5 {[%clk 0:00:00]} 14. exd5 {[%clk 0:00:00]}  Qxd5 {[%clk 0:00:00]} 15. c4 {[%clk 0:00:00]}  dxc3 {[%clk 0:00:00]} 16. bxc3 {[%clk 0:00:00]}  b5 {[%clk 0:00:00]} 17. Bc2 {[%clk 0:00:00]}  Bb7 {[%clk 0:00:00]} 18. d4 {[%clk 0:00:00]}  Rac8 {[%clk 0:00:00]} 19. a4 {[%clk 0:00:00]}  b4 {[%clk 0:00:00]} 20. cxb4 {[%clk 0:00:00]}  Rxc2 {[%clk 0:00:00]} 21. Nf4 {[%clk 0:00:00]}  Qxd4 {[%clk 0:00:00]} 22. Be3 {[%clk 0:00:00]}  Qxb4 {[%clk 0:00:00]} 23. Rab1 {[%clk 0:00:00]}  Rb2 {[%clk 0:00:00]} 24. Rbc1 {[%clk 0:00:00]}  Qxa4 {[%clk 0:00:00]} 25. Rc7 {[%clk 0:00:00]}  Nc4 {[%clk 0:00:00]} 26. Rxe7 {[%clk 0:00:00]}  Nxe3 {[%clk 0:00:00]} 27. Qxe3 {[%clk 0:00:00]}  Rb3 {[%clk 0:00:00]} 28. Qd2 {[%clk 0:00:00]}  Bh6 {[%clk 0:00:00]} 29. g3 {[%clk 0:00:00]}  Bxf4 {[%clk 0:00:00]} 30. gxf4 {[%clk 0:00:00]}  Rb5 {[%clk 0:00:00]} 31. Qe3 {[%clk 0:00:00]}  Rb3 {[%clk 0:00:00]} 32. Qe5 {[%clk 0:00:00]}  Rb5 {[%clk 0:00:00]} 33. Qe3 {[%clk 0:00:00]}  Rb4 {[%clk 0:00:00]} 34. Qe5 {[%clk 0:00:00]}  Rxf4 {[%clk 0:00:00]} 35. Rxb7 {[%clk 0:00:00]}  Rg4+ {[%clk 0:00:00]} 36. Kh1 {[%clk 0:00:00]}  Qc6+ {[%clk 0:00:00]} 37. f3 {[%clk 0:00:00]}  Qxb7 {[%clk 0:00:00]} 38. h3 {[%clk 0:00:00]}  Rb4 {[%clk 0:00:00]} 0-1


[Site "https://www.chess.com"]

[Event "Titled Tuesday Blitz August 16 Late 2022"]
[White "Kalavannan, Koby"]
[Black "Bochnicka, Vladimir"]
[WhiteFideId "425753"]
[BlackFideId "14943450"]
[WhiteElo "1927"]
[BlackElo "1939"]
[Result "1-0"]
[Round "02"]
[TimeControl "180+1"]
[Date "2022.08.18"]
[WhiteClock "0:00:00"]
[BlackClock "0:00:00"]

1. d4 {[%clk 0:00:00]}  d5 {[%clk 0:00:00]} 2. Nf3 {[%clk 0:00:00]}  Nf6 {[%clk 0:00:00]} 3. c4 {[%clk 0:00:00]}  e6 {[%clk 0:00:00]} 4. g3 {[%clk 0:00:00]}  dxc4 {[%clk 0:00:00]} 5. Bg2 {[%clk 0:00:00]}  c6 {[%clk 0:00:00]} 6. O-O {[%clk 0:00:00]}  Bd6 {[%clk 0:00:00]} 7. Re1 {[%clk 0:00:00]}  O-O {[%clk 0:00:00]} 8. e4 {[%clk 0:00:00]}  Be7 {[%clk 0:00:00]} 9. a4 {[%clk 0:00:00]}  c5 {[%clk 0:00:00]} 10. Nc3 {[%clk 0:00:00]}  cxd4 {[%clk 0:00:00]} 11. Nxd4 {[%clk 0:00:00]}  Nc6 {[%clk 0:00:00]} 12. Nxc6 {[%clk 0:00:00]}  Qxd1 {[%clk 0:00:00]} 13. Nxe7+ {[%clk 0:00:00]} 1-0


[Site "https://www.chess.com"]

[Event "Titled Tuesday Blitz August 16 Late 2022"]
[White "Kambrath, Yannick"]
[Black "Shimanov, Aleksandr"]
[WhiteFideId "20632525"]
[BlackFideId "4198603"]
[WhiteElo "2236"]
[BlackElo "2605"]
[Result "1-0"]
[Round "02"]
[TimeControl "180+1"]
[Date "2022.08.16"]
[WhiteClock "0:00:18"]
[BlackClock "0:00:06"]

1. d4 {[%clk 0:02:53]}  Nf6 {[%clk 0:02:59]} 2. Nf3 {[%clk 0:02:47]}  d6 {[%clk 0:02:59]} 3. g3 {[%clk 0:02:42]}  g6 {[%clk 0:02:58]} 4. Bg2 {[%clk 0:02:36]}  Bg7 {[%clk 0:02:59]} 5. O-O {[%clk 0:02:36]}  O-O {[%clk 0:02:59]} 6. b4 {[%clk 0:02:35]}  e5 {[%clk 0:02:51]} 7. dxe5 {[%clk 0:02:35]}  dxe5 {[%clk 0:02:52]} 8. Bb2 {[%clk 0:02:34]}  e4 {[%clk 0:02:51]} 9. Nd4 {[%clk 0:02:33]}  Re8 {[%clk 0:02:49]} 10. e3 {[%clk 0:02:33]}  Nbd7 {[%clk 0:02:48]} 11. c4 {[%clk 0:02:32]}  Ne5 {[%clk 0:02:48]} 12. Nd2 {[%clk 0:02:30]}  Nd3 {[%clk 0:02:18]} 13. Bc3 {[%clk 0:02:30]}  Qe7 {[%clk 0:02:09]} 14. Rb1 {[%clk 0:01:55]}  h5 {[%clk 0:02:06]} 15. Nxe4 {[%clk 0:01:53]}  Nxe4 {[%clk 0:02:05]} 16. Qxd3 {[%clk 0:01:53]}  Nxc3 {[%clk 0:01:53]} 17. Qxc3 {[%clk 0:01:54]}  h4 {[%clk 0:01:53]} 18. Rfd1 {[%clk 0:01:50]}  h3 {[%clk 0:01:53]} 19. Bf3 {[%clk 0:01:48]}  c6 {[%clk 0:01:51]} 20. c5 {[%clk 0:01:42]}  Qf6 {[%clk 0:01:51]} 21. Be2 {[%clk 0:01:32]}  Bf5 {[%clk 0:01:47]} 22. Rbc1 {[%clk 0:01:24]}  Be4 {[%clk 0:01:47]} 23. Bf1 {[%clk 0:01:24]}  Bf5 {[%clk 0:01:29]} 24. Qc4 {[%clk 0:01:10]}  Bg4 {[%clk 0:01:26]} 25. Be2 {[%clk 0:01:06]}  Bxe2 {[%clk 0:01:22]} 26. Qxe2 {[%clk 0:01:07]}  Rad8 {[%clk 0:01:18]} 27. Qf1 {[%clk 0:01:01]}  Qg5 {[%clk 0:00:51]} 28. Qxh3 {[%clk 0:00:57]}  Rxe3 {[%clk 0:00:44]} 29. fxe3 {[%clk 0:00:36]}  Qxe3+ {[%clk 0:00:45]} 30. Kh1 {[%clk 0:00:36]}  Rxd4 {[%clk 0:00:44]} 31. Qg2 {[%clk 0:00:33]}  Rxb4 {[%clk 0:00:37]} 32. Rd8+ {[%clk 0:00:30]}  Kh7 {[%clk 0:00:37]} 33. Rf1 {[%clk 0:00:28]}  Qe6 {[%clk 0:00:35]} 34. Rd6 {[%clk 0:00:24]}  Qc4 {[%clk 0:00:21]} 35. Rdd1 {[%clk 0:00:20]}  Rb2 {[%clk 0:00:16]} 36. Rf2 {[%clk 0:00:20]}  Rxf2 {[%clk 0:00:09]} 37. Qxf2 {[%clk 0:00:21]}  Qe4+ {[%clk 0:00:10]} 38. Qg2 {[%clk 0:00:20]}  Qe6 {[%clk 0:00:10]} 39. Rf1 {[%clk 0:00:20]}  Bd4 {[%clk 0:00:08]} 40. Rc1 {[%clk 0:00:18]}  Kg7 {[%clk 0:00:08]} 41. Qf3 {[%clk 0:00:18]}  Qe5 {[%clk 0:00:08]} 42. Kg2 {[%clk 0:00:18]}  Bxc5 {[%clk 0:00:09]} 43. Rc2 {[%clk 0:00:16]}  Bd4 {[%clk 0:00:08]} 44. Re2 {[%clk 0:00:16]}  Qd6 {[%clk 0:00:09]} 45. h4 {[%clk 0:00:16]}  b5 {[%clk 0:00:08]} 46. h5 {[%clk 0:00:16]}  c5 {[%clk 0:00:07]} 47. hxg6 {[%clk 0:00:17]}  Qxg6 {[%clk 0:00:07]} 48. Re4 {[%clk 0:00:17]}  Kf8 {[%clk 0:00:06]} 49. Rg4 {[%clk 0:00:17]}  Qe6 {[%clk 0:00:06]} 50. Qa8+ {[%clk 0:00:17]}  Qe8 {[%clk 0:00:04]} 51. Rg8+ {[%clk 0:00:17]}  Kxg8 {[%clk 0:00:05]} 52. Qxe8+ {[%clk 0:00:18]}  Kg7 {[%clk 0:00:06]} 53. Qxb5 {[%clk 0:00:18]} 1-0


[Site "https://www.chess.com"]

[Event "Titled Tuesday Blitz August 16 Late 2022"]
[White "Kobo, Ori"]
[Black "Riff, Vincent"]
[WhiteFideId "2812320"]
[BlackFideId "617776"]
[WhiteElo "2420"]
[BlackElo "2369"]
[Result "1-0"]
[Round "02"]
[TimeControl "180+1"]
[Date "2022.08.16"]
[WhiteClock "0:00:38"]
[BlackClock "0:00:38"]

1. e4 {[%clk 0:03:00]}  c5 {[%clk 0:02:45]} 2. Nc3 {[%clk 0:03:00]}  Nc6 {[%clk 0:02:45]} 3. Bb5 {[%clk 0:02:59]}  Nd4 {[%clk 0:02:45]} 4. Nf3 {[%clk 0:02:59]}  g6 {[%clk 0:02:45]} 5. Bc4 {[%clk 0:02:56]}  Bg7 {[%clk 0:02:45]} 6. Nxd4 {[%clk 0:02:56]}  cxd4 {[%clk 0:02:45]} 7. Qf3 {[%clk 0:02:57]}  e6 {[%clk 0:02:45]} 8. Nb5 {[%clk 0:02:56]}  d5 {[%clk 0:02:45]} 9. exd5 {[%clk 0:02:45]}  a6 {[%clk 0:02:40]} 10. dxe6 {[%clk 0:02:35]}  fxe6 {[%clk 0:02:38]} 11. Na3 {[%clk 0:02:30]}  Nf6 {[%clk 0:02:37]} 12. O-O {[%clk 0:02:24]}  O-O {[%clk 0:02:37]} 13. Qe2 {[%clk 0:02:20]}  Kh8 {[%clk 0:02:31]} 14. d3 {[%clk 0:02:20]}  Ra7 {[%clk 0:02:30]} 15. Bg5 {[%clk 0:02:17]}  b5 {[%clk 0:02:30]} 16. Bb3 {[%clk 0:02:17]}  h6 {[%clk 0:02:09]} 17. Bh4 {[%clk 0:02:13]}  g5 {[%clk 0:02:09]} 18. Bg3 {[%clk 0:02:13]}  Nd5 {[%clk 0:02:07]} 19. Rae1 {[%clk 0:01:57]}  Nf4 {[%clk 0:02:04]} 20. Bxf4 {[%clk 0:01:45]}  Rxf4 {[%clk 0:02:05]} 21. Nb1 {[%clk 0:01:41]}  e5 {[%clk 0:02:03]} 22. Nd2 {[%clk 0:01:41]}  Raf7 {[%clk 0:02:01]} 23. Bxf7 {[%clk 0:01:40]}  Rxf7 {[%clk 0:02:00]} 24. Ne4 {[%clk 0:01:39]}  Bb7 {[%clk 0:02:01]} 25. Qh5 {[%clk 0:01:37]}  Rf4 {[%clk 0:01:49]} 26. g3 {[%clk 0:01:35]}  Rf8 {[%clk 0:01:46]} 27. Re2 {[%clk 0:01:27]}  Qd5 {[%clk 0:01:41]} 28. b3 {[%clk 0:01:24]}  Qc6 {[%clk 0:01:32]} 29. f3 {[%clk 0:01:24]}  Bc8 {[%clk 0:01:29]} 30. g4 {[%clk 0:01:19]}  Be6 {[%clk 0:01:19]} 31. Nxg5 {[%clk 0:01:15]}  Bd5 {[%clk 0:01:16]} 32. Ne4 {[%clk 0:01:12]}  Rf4 {[%clk 0:01:15]} 33. Rg2 {[%clk 0:01:10]}  Bf7 {[%clk 0:01:11]} 34. Qh4 {[%clk 0:01:08]}  Bg6 {[%clk 0:01:11]} 35. Qg3 {[%clk 0:01:05]}  Kh7 {[%clk 0:01:08]} 36. h4 {[%clk 0:01:04]}  Qd7 {[%clk 0:00:48]} 37. h5 {[%clk 0:01:04]}  Bxe4 {[%clk 0:00:48]} 38. fxe4 {[%clk 0:01:03]}  Qf7 {[%clk 0:00:47]} 39. Rxf4 {[%clk 0:01:01]}  exf4 {[%clk 0:00:48]} 40. Qf3 {[%clk 0:01:00]}  Qf6 {[%clk 0:00:43]} 41. e5 {[%clk 0:00:57]}  Qxe5 {[%clk 0:00:42]} 42. Re2 {[%clk 0:00:54]}  Qg5 {[%clk 0:00:42]} 43. Qe4+ {[%clk 0:00:51]}  Kh8 {[%clk 0:00:41]} 44. Qf5 {[%clk 0:00:40]}  Qxf5 {[%clk 0:00:37]} 45. gxf5 {[%clk 0:00:41]}  Kg8 {[%clk 0:00:38]} 46. Re6 {[%clk 0:00:39]}  Kf7 {[%clk 0:00:37]} 47. Rxa6 {[%clk 0:00:39]}  b4 {[%clk 0:00:38]} 48. Kg2 {[%clk 0:00:38]} 1-0


[Site "https://www.chess.com"]

[Event "Titled Tuesday Blitz August 16 Late 2022"]
[White "Kopczynski, Michal"]
[Black "Urh, Zala"]
[WhiteFideId "1124200"]
[BlackFideId "14611481"]
[WhiteElo "2235"]
[BlackElo "2097"]
[Result "1-0"]
[Round "02"]
[TimeControl "180+1"]
[Date "2022.08.18"]
[WhiteClock "0:00:00"]
[BlackClock "0:00:00"]

1. e4 {[%clk 0:00:00]}  e5 {[%clk 0:00:00]} 2. Nf3 {[%clk 0:00:00]}  Nc6 {[%clk 0:00:00]} 3. Bb5 {[%clk 0:00:00]}  a6 {[%clk 0:00:00]} 4. Ba4 {[%clk 0:00:00]}  Nf6 {[%clk 0:00:00]} 5. O-O {[%clk 0:00:00]}  Be7 {[%clk 0:00:00]} 6. Re1 {[%clk 0:00:00]}  b5 {[%clk 0:00:00]} 7. Bb3 {[%clk 0:00:00]}  d6 {[%clk 0:00:00]} 8. a4 {[%clk 0:00:00]}  Bb7 {[%clk 0:00:00]} 9. axb5 {[%clk 0:00:00]}  axb5 {[%clk 0:00:00]} 10. Rxa8 {[%clk 0:00:00]}  Bxa8 {[%clk 0:00:00]} 11. d3 {[%clk 0:00:00]}  O-O {[%clk 0:00:00]} 12. Nbd2 {[%clk 0:00:00]}  Bb7 {[%clk 0:00:00]} 13. Nf1 {[%clk 0:00:00]}  Na5 {[%clk 0:00:00]} 14. Ba2 {[%clk 0:00:00]}  c5 {[%clk 0:00:00]} 15. Ng3 {[%clk 0:00:00]}  Nc6 {[%clk 0:00:00]} 16. Nf5 {[%clk 0:00:00]}  Qa8 {[%clk 0:00:00]} 17. Bd5 {[%clk 0:00:00]}  Re8 {[%clk 0:00:00]} 18. Ng5 {[%clk 0:00:00]}  Nxd5 {[%clk 0:00:00]} 19. Qh5 {[%clk 0:00:00]}  Bxg5 {[%clk 0:00:00]} 20. Qxg5 {[%clk 0:00:00]}  g6 {[%clk 0:00:00]} 21. exd5 {[%clk 0:00:00]}  Nd4 {[%clk 0:00:00]} 22. Nxd6 {[%clk 0:00:00]}  Rd8 {[%clk 0:00:00]} 23. Qf6 {[%clk 0:00:00]}  Bxd5 {[%clk 0:00:00]} 24. Bh6 {[%clk 0:00:00]}  Rxd6 {[%clk 0:00:00]} 25. Qg7# {[%clk 0:00:00]} 1-0


[Site "https://www.chess.com"]

[Event "Titled Tuesday Blitz August 16 Late 2022"]
[White "Kostiukov, Alexandr"]
[Black "Blanco Ronquillo, Humberto L."]
[WhiteFideId "14108100"]
[BlackFideId "3504239"]
[WhiteElo "2202"]
[BlackElo "2425"]
[Result "0-1"]
[Round "02"]
[TimeControl "180+1"]
[Date "2022.08.18"]
[WhiteClock "0:00:00"]
[BlackClock "0:00:00"]

1. g3 {[%clk 0:00:00]}  d5 {[%clk 0:00:00]} 2. Bg2 {[%clk 0:00:00]}  c6 {[%clk 0:00:00]} 3. d3 {[%clk 0:00:00]}  Nf6 {[%clk 0:00:00]} 4. e4 {[%clk 0:00:00]}  dxe4 {[%clk 0:00:00]} 5. dxe4 {[%clk 0:00:00]}  Qxd1+ {[%clk 0:00:00]} 6. Kxd1 {[%clk 0:00:00]}  e5 {[%clk 0:00:00]} 7. f3 {[%clk 0:00:00]}  Bc5 {[%clk 0:00:00]} 8. Nd2 {[%clk 0:00:00]}  Be6 {[%clk 0:00:00]} 9. Bh3 {[%clk 0:00:00]}  Ke7 {[%clk 0:00:00]} 10. Bxe6 {[%clk 0:00:00]}  Kxe6 {[%clk 0:00:00]} 11. Nh3 {[%clk 0:00:00]}  Rd8 {[%clk 0:00:00]} 12. Ke2 {[%clk 0:00:00]}  a5 {[%clk 0:00:00]} 13. a4 {[%clk 0:00:00]}  Na6 {[%clk 0:00:00]} 14. c3 {[%clk 0:00:00]}  Bb6 {[%clk 0:00:00]} 15. Nc4 {[%clk 0:00:00]}  Bc7 {[%clk 0:00:00]} 16. Be3 {[%clk 0:00:00]}  Nd7 {[%clk 0:00:00]} 17. f4 {[%clk 0:00:00]}  Ndc5 {[%clk 0:00:00]} 18. Ng5+ {[%clk 0:00:00]}  Ke7 {[%clk 0:00:00]} 19. fxe5 {[%clk 0:00:00]}  h6 {[%clk 0:00:00]} 20. Nf3 {[%clk 0:00:00]}  Nxe4 {[%clk 0:00:00]} 21. Nd4 {[%clk 0:00:00]}  Nec5 {[%clk 0:00:00]} 22. Nf5+ {[%clk 0:00:00]}  Kf8 {[%clk 0:00:00]} 23. b4 {[%clk 0:00:00]}  axb4 {[%clk 0:00:00]} 24. cxb4 {[%clk 0:00:00]}  Ne6 {[%clk 0:00:00]} 25. b5 {[%clk 0:00:00]}  Nb4 {[%clk 0:00:00]} 26. b6 {[%clk 0:00:00]}  Bb8 {[%clk 0:00:00]} 27. Nfd6 {[%clk 0:00:00]}  Bxd6 {[%clk 0:00:00]} 28. exd6 {[%clk 0:00:00]}  Nc2 {[%clk 0:00:00]} 29. Ra2 {[%clk 0:00:00]}  Nxe3 {[%clk 0:00:00]} 30. Kxe3 {[%clk 0:00:00]}  Re8 {[%clk 0:00:00]} 31. Kf2 {[%clk 0:00:00]}  Nc5 {[%clk 0:00:00]} 32. a5 {[%clk 0:00:00]}  Re4 {[%clk 0:00:00]} 33. Rc2 {[%clk 0:00:00]}  Nd3+ {[%clk 0:00:00]} 34. Kf1 {[%clk 0:00:00]}  Ne5 {[%clk 0:00:00]} 35. Nxe5 {[%clk 0:00:00]}  Rxe5 {[%clk 0:00:00]} 36. Kf2 {[%clk 0:00:00]}  Raxa5 {[%clk 0:00:00]} 37. Rd1 {[%clk 0:00:00]}  Red5 {[%clk 0:00:00]} 38. Rcd2 {[%clk 0:00:00]}  Ke8 {[%clk 0:00:00]} 39. Rxd5 {[%clk 0:00:00]}  Rxd5 {[%clk 0:00:00]} 0-1


[Site "https://www.chess.com"]

[Event "Titled Tuesday Blitz August 16 Late 2022"]
[White "Krzywda, Andrzej"]
[Black "Moore, Alex"]
[WhiteFideId "1114565"]
[BlackFideId "30910692"]
[WhiteElo "2098"]
[BlackElo "1912"]
[Result "1-0"]
[Round "02"]
[TimeControl "180+1"]
[Date "2022.08.18"]
[WhiteClock "0:00:00"]
[BlackClock "0:00:00"]

1. d4 {[%clk 0:00:00]}  d5 {[%clk 0:00:00]} 2. c4 {[%clk 0:00:00]}  dxc4 {[%clk 0:00:00]} 3. e4 {[%clk 0:00:00]}  Nf6 {[%clk 0:00:00]} 4. e5 {[%clk 0:00:00]}  Nd5 {[%clk 0:00:00]} 5. Bxc4 {[%clk 0:00:00]}  e6 {[%clk 0:00:00]} 6. Nc3 {[%clk 0:00:00]}  Nd7 {[%clk 0:00:00]} 7. Nxd5 {[%clk 0:00:00]}  exd5 {[%clk 0:00:00]} 8. Bxd5 {[%clk 0:00:00]}  Bb4+ {[%clk 0:00:00]} 9. Bd2 {[%clk 0:00:00]}  Bxd2+ {[%clk 0:00:00]} 10. Qxd2 {[%clk 0:00:00]}  O-O {[%clk 0:00:00]} 11. Nf3 {[%clk 0:00:00]}  Nb6 {[%clk 0:00:00]} 12. Be4 {[%clk 0:00:00]}  c6 {[%clk 0:00:00]} 13. O-O {[%clk 0:00:00]}  Bg4 {[%clk 0:00:00]} 14. Rfe1 {[%clk 0:00:00]}  Qd7 {[%clk 0:00:00]} 15. Rad1 {[%clk 0:00:00]}  Rad8 {[%clk 0:00:00]} 16. b3 {[%clk 0:00:00]}  Rfe8 {[%clk 0:00:00]} 17. Qg5 {[%clk 0:00:00]}  Bxf3 {[%clk 0:00:00]} 18. Bxf3 {[%clk 0:00:00]}  Nd5 {[%clk 0:00:00]} 19. h4 {[%clk 0:00:00]}  Qe7 {[%clk 0:00:00]} 20. Qg3 {[%clk 0:00:00]}  Qb4 {[%clk 0:00:00]} 21. h5 {[%clk 0:00:00]}  Ne7 {[%clk 0:00:00]} 22. Qf4 {[%clk 0:00:00]}  c5 {[%clk 0:00:00]} 23. e6 {[%clk 0:00:00]}  fxe6 {[%clk 0:00:00]} 24. Rxe6 {[%clk 0:00:00]}  Rxd4 {[%clk 0:00:00]} 25. Rxd4 {[%clk 0:00:00]}  Qxd4 {[%clk 0:00:00]} 26. Qxd4 {[%clk 0:00:00]}  cxd4 {[%clk 0:00:00]} 27. Bxb7 {[%clk 0:00:00]}  Kf7 {[%clk 0:00:00]} 28. Rd6 {[%clk 0:00:00]}  Nf5 {[%clk 0:00:00]} 29. Rd7+ {[%clk 0:00:00]}  Re7 {[%clk 0:00:00]} 30. Rxe7+ {[%clk 0:00:00]}  Kxe7 {[%clk 0:00:00]} 31. Be4 {[%clk 0:00:00]}  Nd6 {[%clk 0:00:00]} 32. Bxh7 {[%clk 0:00:00]}  Nb5 {[%clk 0:00:00]} 33. Kf1 {[%clk 0:00:00]}  Kf6 {[%clk 0:00:00]} 34. Bd3 {[%clk 0:00:00]}  Ke5 {[%clk 0:00:00]} 35. Bxb5 {[%clk 0:00:00]} 1-0


[Site "https://www.chess.com"]

[Event "Titled Tuesday Blitz August 16 Late 2022"]
[White "Leitao, Rafael"]
[Black "Olenik Campa, Rudi"]
[WhiteFideId "2101246"]
[BlackFideId "14633264"]
[WhiteElo "2609"]
[BlackElo "2008"]
[Result "1-0"]
[Round "02"]
[TimeControl "180+1"]
[Date "2022.08.18"]
[WhiteClock "0:00:00"]
[BlackClock "0:00:00"]

1. c4 {[%clk 0:00:00]}  g6 {[%clk 0:00:00]} 2. g3 {[%clk 0:00:00]}  Bg7 {[%clk 0:00:00]} 3. Bg2 {[%clk 0:00:00]}  e5 {[%clk 0:00:00]} 4. Nc3 {[%clk 0:00:00]}  Ne7 {[%clk 0:00:00]} 5. d3 {[%clk 0:00:00]}  O-O {[%clk 0:00:00]} 6. Nf3 {[%clk 0:00:00]}  c6 {[%clk 0:00:00]} 7. d4 {[%clk 0:00:00]}  d6 {[%clk 0:00:00]} 8. O-O {[%clk 0:00:00]}  Nd7 {[%clk 0:00:00]} 9. e4 {[%clk 0:00:00]}  Qc7 {[%clk 0:00:00]} 10. Bg5 {[%clk 0:00:00]}  Re8 {[%clk 0:00:00]} 11. Qd2 {[%clk 0:00:00]}  Nf8 {[%clk 0:00:00]} 12. d5 {[%clk 0:00:00]}  f5 {[%clk 0:00:00]} 13. c5 {[%clk 0:00:00]}  cxd5 {[%clk 0:00:00]} 14. Nxd5 {[%clk 0:00:00]}  Nxd5 {[%clk 0:00:00]} 15. Qxd5+ {[%clk 0:00:00]}  Be6 {[%clk 0:00:00]} 16. Qxd6 {[%clk 0:00:00]}  Rac8 {[%clk 0:00:00]} 17. Qxc7 {[%clk 0:00:00]}  Rxc7 {[%clk 0:00:00]} 18. Rfc1 {[%clk 0:00:00]}  Rec8 {[%clk 0:00:00]} 19. Be3 {[%clk 0:00:00]}  Nd7 {[%clk 0:00:00]} 20. b4 {[%clk 0:00:00]}  a5 {[%clk 0:00:00]} 21. a3 {[%clk 0:00:00]}  Bb3 {[%clk 0:00:00]} 22. Rab1 {[%clk 0:00:00]}  a4 {[%clk 0:00:00]} 23. Nd2 {[%clk 0:00:00]}  Be6 {[%clk 0:00:00]} 24. Nc4 {[%clk 0:00:00]}  Bxc4 {[%clk 0:00:00]} 25. Rxc4 {[%clk 0:00:00]}  b6 {[%clk 0:00:00]} 26. Rbc1 {[%clk 0:00:00]}  bxc5 {[%clk 0:00:00]} 27. bxc5 {[%clk 0:00:00]}  f4 {[%clk 0:00:00]} 28. gxf4 {[%clk 0:00:00]}  exf4 {[%clk 0:00:00]} 29. Bxf4 {[%clk 0:00:00]}  Rxc5 {[%clk 0:00:00]} 30. Rxc5 {[%clk 0:00:00]}  Rxc5 {[%clk 0:00:00]} 31. Rd1 {[%clk 0:00:00]}  Ne5 {[%clk 0:00:00]} 32. Bg3 {[%clk 0:00:00]}  Nc4 {[%clk 0:00:00]} 33. Rc1 {[%clk 0:00:00]}  Bd4 {[%clk 0:00:00]} 34. e5 {[%clk 0:00:00]}  Nxa3 {[%clk 0:00:00]} 35. Rd1 {[%clk 0:00:00]}  Nc2 {[%clk 0:00:00]} 36. e6 {[%clk 0:00:00]}  a3 {[%clk 0:00:00]} 37. Bd6 {[%clk 0:00:00]}  Rb5 {[%clk 0:00:00]} 38. e7 {[%clk 0:00:00]}  Kf7 {[%clk 0:00:00]} 39. Bc6 {[%clk 0:00:00]} 1-0


[Site "https://www.chess.com"]

[Event "Titled Tuesday Blitz August 16 Late 2022"]
[White "Levine, Joseph"]
[Black "Tanenbaum, Zachary"]
[WhiteFideId "30940346"]
[BlackFideId "2060850"]
[WhiteElo "1810"]
[BlackElo "2175"]
[Result "1-0"]
[Round "02"]
[TimeControl "180+1"]
[Date "2022.08.16"]
[WhiteClock "0:00:56"]
[BlackClock "0:00:04"]

1. e4 {[%clk 0:03:00]}  e5 {[%clk 0:03:00]} 2. Nf3 {[%clk 0:02:58]}  Nc6 {[%clk 0:03:00]} 3. Bc4 {[%clk 0:02:58]}  Nf6 {[%clk 0:03:00]} 4. d3 {[%clk 0:02:59]}  Be7 {[%clk 0:03:01]} 5. c3 {[%clk 0:02:58]}  O-O {[%clk 0:03:01]} 6. O-O {[%clk 0:02:57]}  d5 {[%clk 0:03:02]} 7. exd5 {[%clk 0:02:57]}  Nxd5 {[%clk 0:03:03]} 8. Re1 {[%clk 0:02:57]}  Bg4 {[%clk 0:03:03]} 9. h3 {[%clk 0:02:57]}  Bh5 {[%clk 0:03:03]} 10. Nbd2 {[%clk 0:02:55]}  a6 {[%clk 0:03:03]} 11. Ne4 {[%clk 0:02:53]}  Nb6 {[%clk 0:03:03]} 12. Bb3 {[%clk 0:02:53]}  Bd6 {[%clk 0:03:01]} 13. Ng3 {[%clk 0:02:42]}  Bg6 {[%clk 0:03:01]} 14. Bg5 {[%clk 0:02:42]}  Qd7 {[%clk 0:02:58]} 15. Nh4 {[%clk 0:02:42]}  Be7 {[%clk 0:02:25]} 16. Bxe7 {[%clk 0:02:37]}  Qxe7 {[%clk 0:02:16]} 17. Qg4 {[%clk 0:02:10]}  Bxd3 {[%clk 0:01:54]} 18. Rad1 {[%clk 0:02:10]}  Rad8 {[%clk 0:01:52]} 19. Nh5 {[%clk 0:02:05]}  g6 {[%clk 0:01:26]} 20. Rxd3 {[%clk 0:02:04]}  Kh8 {[%clk 0:01:13]} 21. Rxd8 {[%clk 0:02:03]}  Qxd8 {[%clk 0:01:06]} 22. Ng3 {[%clk 0:01:57]}  f5 {[%clk 0:01:06]} 23. Nxg6+ {[%clk 0:01:53]}  hxg6 {[%clk 0:01:04]} 24. Qxg6 {[%clk 0:01:53]}  Qf6 {[%clk 0:01:00]} 25. Qh5+ {[%clk 0:01:47]}  Kg7 {[%clk 0:01:01]} 26. Bc2 {[%clk 0:01:36]}  e4 {[%clk 0:00:58]} 27. Bxe4 {[%clk 0:01:31]}  fxe4 {[%clk 0:00:54]} 28. Rxe4 {[%clk 0:01:32]}  Ne7 {[%clk 0:00:34]} 29. Rg4+ {[%clk 0:01:26]}  Ng6 {[%clk 0:00:33]} 30. f4 {[%clk 0:01:12]}  Rh8 {[%clk 0:00:26]} 31. Qc5 {[%clk 0:00:58]}  Kh6 {[%clk 0:00:03]} 32. Nf5+ {[%clk 0:00:55]}  Kh7 {[%clk 0:00:03]} 33. Qxc7+ {[%clk 0:00:55]}  Kg8 {[%clk 0:00:02]} 34. Rxg6+ {[%clk 0:00:55]}  Qxg6 {[%clk 0:00:02]} 35. Ne7+ {[%clk 0:00:55]}  Kf7 {[%clk 0:00:03]} 36. Nxg6+ {[%clk 0:00:55]}  Kxg6 {[%clk 0:00:04]} 37. Qxb6+ {[%clk 0:00:56]}  Kg7 {[%clk 0:00:04]} 38. Qxb7+ {[%clk 0:00:56]}  Kh6 {[%clk 0:00:05]} 39. Qxa6+ {[%clk 0:00:56]}  Kg7 {[%clk 0:00:05]} 40. Qb7+ {[%clk 0:00:56]}  Kh6 {[%clk 0:00:05]} 41. Qb6+ {[%clk 0:00:56]}  Kh7 {[%clk 0:00:05]} 42. Qc7+ {[%clk 0:00:56]}  Kg6 {[%clk 0:00:05]} 43. Qd6+ {[%clk 0:00:56]}  Kh7 {[%clk 0:00:05]} 44. f5 {[%clk 0:00:56]}  Rg8 {[%clk 0:00:05]} 45. Qg6+ {[%clk 0:00:57]}  Kh8 {[%clk 0:00:04]} 46. Qh6# {[%clk 0:00:56]} 1-0


[Site "https://www.chess.com"]

[Event "Titled Tuesday Blitz August 16 Late 2022"]
[White "Lopez Perdomo, Juan David"]
[Black "Przybylski, Wojciech"]
[WhiteFideId "4405137"]
[BlackFideId "1117599"]
[WhiteElo "1965"]
[BlackElo "2133"]
[Result "0-1"]
[Round "02"]
[TimeControl "180+1"]
[Date "2022.08.18"]
[WhiteClock "0:00:00"]
[BlackClock "0:00:00"]

1. e4 {[%clk 0:00:00]}  c5 {[%clk 0:00:00]} 2. d4 {[%clk 0:00:00]}  cxd4 {[%clk 0:00:00]} 3. c3 {[%clk 0:00:00]}  d3 {[%clk 0:00:00]} 4. Nf3 {[%clk 0:00:00]}  Nc6 {[%clk 0:00:00]} 5. Bxd3 {[%clk 0:00:00]}  e5 {[%clk 0:00:00]} 6. O-O {[%clk 0:00:00]}  Be7 {[%clk 0:00:00]} 7. Re1 {[%clk 0:00:00]}  Nf6 {[%clk 0:00:00]} 8. Nbd2 {[%clk 0:00:00]}  O-O {[%clk 0:00:00]} 9. Nf1 {[%clk 0:00:00]}  d5 {[%clk 0:00:00]} 10. exd5 {[%clk 0:00:00]}  Qxd5 {[%clk 0:00:00]} 11. Ng3 {[%clk 0:00:00]}  Bg4 {[%clk 0:00:00]} 12. Ne4 {[%clk 0:00:00]}  Rad8 {[%clk 0:00:00]} 13. Nxf6+ {[%clk 0:00:00]}  Bxf6 {[%clk 0:00:00]} 14. Re3 {[%clk 0:00:00]}  e4 {[%clk 0:00:00]} 15. Qa4 {[%clk 0:00:00]}  Bxf3 {[%clk 0:00:00]} 16. Bc2 {[%clk 0:00:00]}  Bd1 {[%clk 0:00:00]} 17. c4 {[%clk 0:00:00]}  Bxc2 {[%clk 0:00:00]} 0-1


[Site "https://www.chess.com"]